fUSD/lending_fUSD_20250504
["ID","MTS","AMOUNT","RATE_DAILY","PERIOD"]
[359775150,1746325842201,-450.0,0.00019985,2]
[359775151,1746325842210,-450.0,0.00019985,2]
[359775152,1746325842220,-450.0,0.00019985,2]
[359775153,1746325842229,-450.0,0.00019985,2]
[359775154,1746325842239,-450.0,0.00019985,2]
[359775155,1746325842248,-450.0,0.00019985,2]
[359775156,1746325842257,-671.65,0.00019985,2]
[359775157,1746325842266,-2637.34,0.00019985,2]
[359775158,1746325842276,-321.28692681,0.00019985,2]
[359775159,1746325842285,-450.0,0.00019985,2]
[359775160,1746325842294,-450.0,0.00019985,2]
[359775161,1746325842302,-2657.05,0.00019985,2]
[359775162,1746325842311,-450.0,0.00019985,2]
[359775163,1746325842321,-58217.68,0.00019985,2]
[359775164,1746325842330,-450.0,0.00019985,2]
[359775165,1746325842339,-450.0,0.00019985,2]
[359775166,1746325842349,-450.0,0.00019985,2]
[359775167,1746325842359,-1077.89,0.00019985,2]
[359775168,1746325842368,-450.0,0.00019985,2]
[359775169,1746325842377,-550.88,0.00019985,2]
[359775170,1746325842386,-450.0,0.00019985,2]
[359775171,1746325842395,-450.0,0.00019985,2]
[359775172,1746325842404,-469.9218943,0.00019985,2]
[359775173,1746325842413,-3000.49,0.00019985,2]
[359775174,1746325842423,-13692.41,0.00019985,2]
[359775175,1746325842432,-450.0,0.00019985,2]
[359775176,1746325842441,-450.0,0.00019985,2]
[359775177,1746325842450,-1014.74,0.00019985,2]
[359775178,1746325842460,-8317.91,0.00019985,2]
[359775179,1746325842469,-450.0,0.00019985,2]
[359775180,1746325842478,-1589.7,0.00019985,2]
[359775181,1746325842487,-450.0,0.00019985,2]
[359775182,1746325842496,-450.0,0.00019985,2]
[359775183,1746325842505,-919.8,0.00019985,2]
[359775184,1746325842513,-450.0,0.00019985,2]
[359775185,1746325842522,-450.0,0.00019985,2]
[359775186,1746325842531,-450.0,0.00019985,2]
[359775187,1746325842540,-975.53,0.00019985,2]
[359775188,1746325842549,-452.36,0.00019985,2]
[359775189,1746325842559,-450.0,0.00019985,2]
[359775190,1746325842568,-832.08,0.00019985,2]
[359775191,1746325842577,-643.34,0.00019985,2]
[359775192,1746325842585,-450.0,0.00019985,2]
[359775193,1746325842594,-450.0,0.00019985,2]
[359775194,1746325842603,-450.0,0.00019985,2]
[359775195,1746325842612,-450.0,0.00019985,2]
[359775196,1746325842621,-450.0,0.00019985,2]
[359775197,1746325842630,-450.0,0.00019985,2]
[359775198,1746325842639,-450.85,0.00019985,2]
[359775199,1746325842648,-1173.17,0.00019985,2]
[359775200,1746325842657,-450.0,0.00019985,2]
[359775201,1746325842666,-450.0,0.00019985,2]
[359775202,1746325842675,-457.97,0.00019985,2]
[359775203,1746325842684,-577.0,0.00019985,2]
[359775204,1746325842693,-310663.4753197,0.00019986,2]
[359775205,1746325842702,-24035.9020275,0.00019986,2]
[359775206,1746325842711,-8402.7234024,0.00019986,2]
[359775207,1746325842720,-812.23343656,0.0001999,2]
[359775208,1746325842729,-812.23343656,0.0001999,2]
[359775210,1746325842738,-2623.156,0.0001999,2]
[359775212,1746325842747,-166.87,0.0001999,2]
[359775213,1746325842756,-812.23343656,0.0001999,2]
[359775214,1746325842764,-500.0,0.00019999,2]
[359775215,1746325842774,-500.0,0.00019999,2]
[359775216,1746325842782,-368.53655152,0.00019999,2]
[359775217,1746325842791,-500.0,0.00019999,2]
[359775218,1746325842800,-500.0,0.00019999,2]
[359775219,1746325842809,-500.0,0.00019999,2]
[359775220,1746325842817,-500.0,0.00019999,2]
[359775221,1746325842826,-500.0,0.00019999,2]
[359775222,1746325842835,-500.0,0.00019999,2]
[359775223,1746325842844,-500.0,0.00019999,2]
[359775224,1746325842853,-500.0,0.00019999,2]
[359775225,1746325842862,-500.0,0.00019999,2]
[359775226,1746325842871,-500.0,0.00019999,2]
[359775227,1746325842880,-500.0,0.00019999,2]
[359775228,1746325842889,-500.0,0.00019999,2]
[359775230,1746325842899,-500.0,0.00019999,2]
[359775231,1746325842907,-500.0,0.00019999,2]
[359775234,1746325842916,-500.0,0.00019999,2]
[359775235,1746325842926,-500.0,0.00019999,2]
[359775237,1746325842934,-500.0,0.00019999,2]
[359775239,1746325842943,-500.0,0.00019999,2]
[359775241,1746325842954,-163.74134478,0.00019999,2]
[359775243,1746325842963,-500.0,0.00019999,2]
[359775244,1746325842972,-500.0,0.00019999,2]
[359775245,1746325842982,-500.0,0.00019999,2]
[359775246,1746325842991,-500.0,0.00019999,2]
[359775248,1746325843001,-500.0,0.00019999,2]
[359775250,1746325843010,-500.0,0.00019999,2]
[359775251,1746325843019,-482.22280828,0.00019999,2]
[359775252,1746325843028,-500.0,0.00019999,2]
[359775253,1746325843037,-500.0,0.00019999,2]
[359775254,1746325843046,-500.0,0.00019999,2]
[359775255,1746325843056,-266.97429626,0.00019999,2]
[359775256,1746325843065,-450.0,0.00019999,2]
[359775257,1746325843075,-233.59773999,0.00019999,2]
[359775258,1746325843084,-311.50156723,0.00019999,2]
[359775259,1746325843093,-181.1975835,0.00019999,2]
[359775260,1746325843102,-500.0,0.00019999,2]
[359775261,1746325843111,-666.0,0.00019999,2]
[359775262,1746325843120,-500.0,0.00019999,2]
[359775263,1746325843129,-670.46897212,0.00019999,2]
[359775264,1746325843138,-500.0,0.00019999,2]
[359775265,1746325843151,-500.0,0.00019999,2]
[359775266,1746325843161,-278.61701107,0.00019999,2]
[359775267,1746325843171,-377.98337964,0.00019999,2]
[359775268,1746325843180,-300.0,0.00019999,2]
[359775269,1746325843190,-505.93,0.00019999,2]
[359775270,1746325843201,-11039.40926765,0.00019999,2]
[359775271,1746325843210,-991.0,0.00019999,2]
[359775272,1746325843220,-1116.82702565,0.0002,2]
[359775273,1746325843229,-2831941.96112019,0.0002,2]
[359775274,1746325843238,-279622.17670499,0.0002,2]
[359775275,1746325843491,-3018.40926546,0.0002,2]
[359775279,1746325843761,-2418.20212162,0.000199,2]
[359775280,1746325843771,-10933.55298842,0.0002,2]
[359775281,1746325846433,-257.38268028,0.00019984,2]
[359775293,1746325854357,5000.0,0.000298,30]
[359775297,1746325924619,557.0,0.00032,90]
[359775298,1746325969136,550.0,0.00019127,2]
[359775299,1746326006327,234.26,0.000298,31]
[359775300,1746326006387,234.26,0.000298,31]
[359775301,1746326006453,234.26,0.000298,31]
[359775302,1746326006503,234.26,0.000298,31]
[359775303,1746326006567,234.26,0.000298,31]
[359775304,1746326006630,234.26,0.000298,31]
[359775305,1746326006682,234.26,0.000298,31]
[359775306,1746326006744,234.26,0.000298,31]
[359775307,1746326006860,234.26,0.000298,31]
[359775308,1746326006905,234.26,0.000298,31]
[359775309,1746326006953,234.26,0.000298,31]
[359775310,1746326006994,234.26,0.000298,31]
[359775311,1746326007052,234.26,0.000298,31]
[359775312,1746326007117,234.26,0.000298,31]
[359775313,1746326007176,234.26,0.000298,31]
[359775314,1746326007234,234.26,0.000298,31]
[359775315,1746326216563,2108.20000857,0.00032877,60]
[359775316,1746326321815,2196.0,0.00032877,60]
[359775317,1746326450786,200.0,0.00019028,2]
[359775318,1746326489157,189.6359,0.0002,5]
[359775319,1746326588277,1000.0,0.00018964,2]
[359775320,1746326618389,196.8,0.000298,31]
[359775321,1746326618455,196.8,0.000298,31]
[359775322,1746326618509,196.8,0.000298,31]
[359775323,1746326618569,196.8,0.000298,31]
[359775324,1746326618634,196.8,0.000298,31]
[359775325,1746326618694,196.8,0.000298,31]
[359775326,1746326618755,196.8,0.000298,31]
[359775327,1746326618812,196.8,0.000298,31]
[359775328,1746326618873,196.8,0.000298,31]
[359775329,1746326618910,196.8,0.000298,31]
[359775330,1746326618946,196.8,0.000298,31]
[359775331,1746326619012,196.8,0.000298,31]
[359775332,1746326619068,196.8,0.000298,31]
[359775333,1746326619136,196.8,0.000298,31]
[359775334,1746326619183,196.8,0.000298,31]
[359775335,1746326619250,196.8,0.000298,31]
[359775336,1746326674625,298.51,0.00017019,2]
[359775337,1746326675045,298.51,0.00019283,2]
[359775338,1746326737013,289.48,0.00018935,2]
[359775339,1746326771370,5000.0,0.000298,30]
[359775340,1746326821496,499.999999,0.000298,30]
[359775374,1746327032089,-166.66,0.0001967,2]
[359775375,1746327032099,-200.0,0.00019728,2]
[359775376,1746327032108,-33.34,0.00019783,2]
[359775377,1746327032142,-133.39542967,0.00019783,2]
[359775378,1746327032152,-166.73542966,0.000198,2]
[359775379,1746327032161,-228.16914068,0.00019883,2]
[359775380,1746327032197,-418.79153417,0.00019883,2]
[359775381,1746327032207,-289.41192463,0.00019884,2]
[359775382,1746327032216,-646.96067478,0.00019885,2]
[359775383,1746327032225,-289.41192458,0.00019886,2]
[359775384,1746327032234,-172.67554819,0.00019886,2]
[359775385,1746327032248,-646.96067478,0.00019887,2]
[359775386,1746327032257,-289.41192458,0.00019888,2]
[359775387,1746327032267,-199.75171956,0.00019888,2]
[359775388,1746327032278,-7.64828044,0.00019888,2]
[359775389,1746327032288,-646.96067478,0.00019889,2]
[359775390,1746327032297,-1200.0,0.00019889,2]
[359775391,1746327032307,-289.41192458,0.00019889,2]
[359775392,1746327032317,-172.67554819,0.0001989,2]
[359775393,1746327032326,-262.6714,0.0001989,2]
[359775394,1746327032336,-646.96067478,0.00019891,2]
[359775395,1746327032345,-289.41192458,0.00019891,2]
[359775396,1746327032355,-646.96067478,0.00019892,2]
[359775397,1746327032366,-289.41192458,0.00019893,2]
[359775398,1746327032375,-172.67554819,0.00019893,2]
[359775399,1746327032385,-646.96067478,0.00019894,2]
[359775400,1746327032394,-289.41192458,0.00019895,2]
[359775401,1746327032404,-300.0,0.00019895,2]
[359775402,1746327032413,-646.96067478,0.00019896,2]
[359775403,1746327032423,-289.41192458,0.00019896,2]
[359775404,1746327032432,-172.67554819,0.00019897,2]
[359775405,1746327032441,-646.96067478,0.00019898,2]
[359775406,1746327032451,-289.41192458,0.00019898,2]
[359775407,1746327032461,-613.2917,0.000199,2]
[359775408,1746327032471,-673.47947628,0.000199,2]
[359775409,1746327032480,-112.41896255,0.000199,2]
[359775410,1746327032492,-387.58103745,0.000199,2]
[359775436,1746327032759,-159.21922921,0.000199,2]
[359775438,1746327032772,-340.78207079,0.000199,2]
[359775440,1746327032781,-578.61792881,0.000199,2]
[359775448,1746327032846,-9510.15533453,0.000199,2]
[359775450,1746327032855,-646.96067478,0.000199,2]
[359775452,1746327032863,-3814.07927841,0.000199,2]
[359775454,1746327032872,-3376.83868456,0.000199,2]
[359775455,1746327032881,-1299.64992213,0.000199,2]
[359775458,1746327038447,-968.48426381,0.000199,2]
[359775461,1746327040266,-8247.87536337,0.000199,2]
[359775462,1746327040276,-172.67554819,0.000199,2]
[359775463,1746327040285,-181.17672563,0.000199,2]
[359775464,1746327040295,-240.58907845,0.000199,3]
[359775465,1746327040304,-495.09805562,0.000199,2]
[359775466,1746327040314,-5637.05765925,0.000199,2]
[359775467,1746327040323,-289.41192458,0.000199,2]
[359775468,1746327040333,-968.63685878,0.000199,2]
[359775469,1746327040342,-39686.5480512,0.000199,2]
[359775470,1746327040351,-515.0,0.00019973,2]
[359775471,1746327040360,-500.0,0.00019973,2]
[359775472,1746327040370,-411.38429534,0.00019973,2]
[359775473,1746327040379,-500.0,0.00019973,2]
[359775474,1746327040388,-185.86673014,0.00019973,2]
[359775475,1746327040398,-500.0,0.00019973,2]
[359775476,1746327040407,-500.0,0.00019973,2]
[359775477,1746327040416,-500.87047862,0.00019973,2]
[359775478,1746327040426,-500.0,0.00019973,2]
[359775479,1746327040436,-500.0,0.00019973,2]
[359775480,1746327040446,-500.0,0.00019973,2]
[359775481,1746327040455,-500.0,0.00019973,2]
[359775482,1746327040464,-151.0,0.00019974,2]
[359775483,1746327040473,-182.42116604,0.00019974,2]
[359775484,1746327040482,-473.83253751,0.00019982,2]
[359775485,1746327040491,-450.0,0.00019982,2]
[359775486,1746327040502,-450.0,0.00019982,2]
[359775487,1746327040511,-330.40765097,0.00019982,2]
[359775488,1746327040521,-255.01631759,0.00019982,2]
[359775489,1746327040532,-450.0,0.00019982,2]
[359775490,1746327040542,-450.0,0.00019982,2]
[359775491,1746327040552,-178.30706883,0.00019982,2]
[359775492,1746327040564,-159.07067915,0.00019982,2]
[359775493,1746327040574,-450.0,0.00019982,2]
[359775494,1746327040584,-450.0,0.00019982,2]
[359775495,1746327040593,-450.0,0.00019982,2]
[359775496,1746327040603,-450.0,0.00019982,2]
[359775497,1746327040613,-586.18,0.00019982,2]
[359775498,1746327040622,-3998.45,0.00019982,2]
[359775499,1746327040632,-450.0,0.00019982,2]
[359775500,1746327040642,-450.0,0.00019982,2]
[359775501,1746327040652,-450.0,0.00019982,2]
[359775502,1746327040661,-1320.45,0.00019982,2]
[359775503,1746327040670,-157.40979507,0.00019982,2]
[359775504,1746327040680,-256.85915787,0.00019982,2]
[359775505,1746327040689,-171.20750357,0.00019982,2]
[359775506,1746327040699,-153.29513429,0.00019982,2]
[359775507,1746327040708,-450.0,0.00019982,2]
[359775508,1746327040718,-176.66136161,0.00019982,2]
[359775509,1746327040727,-450.0,0.00019982,2]
[359775510,1746327040737,-2708.06,0.00019982,2]
[359775511,1746327040747,-288.06990718,0.00019982,2]
[359775512,1746327040757,-180.05964539,0.00019982,2]
[359775513,1746327040766,-1676.67,0.00019982,2]
[359775514,1746327040776,-450.0,0.00019982,2]
[359775515,1746327040785,-575.2899961,0.00019982,2]
[359775516,1746327040795,-450.0,0.00019982,2]
[359775517,1746327040804,-450.0,0.00019982,2]
[359775518,1746327040813,-450.0,0.00019982,2]
[359775519,1746327040823,-584.93,0.00019983,2]
[359775520,1746327040832,-450.0,0.00019983,2]
[359775521,1746327040841,-450.0,0.00019983,2]
[359775522,1746327040851,-502.26,0.00019983,2]
[359775523,1746327040860,-450.0,0.00019983,2]
[359775524,1746327040869,-450.0,0.00019983,2]
[359775525,1746327040878,-450.0,0.00019983,2]
[359775526,1746327040888,-450.0,0.00019983,2]
[359775527,1746327040897,-450.0,0.00019983,2]
[359775528,1746327040907,-450.0,0.00019983,2]
[359775529,1746327040917,-450.0,0.00019983,2]
[359775530,1746327040926,-450.0,0.00019983,2]
[359775531,1746327040936,-450.0,0.00019983,2]
[359775532,1746327040945,-450.0,0.00019983,2]
[359775533,1746327040955,-450.0,0.00019983,2]
[359775534,1746327040964,-450.0,0.00019983,2]
[359775535,1746327040974,-450.0,0.00019983,2]
[359775536,1746327040983,-450.0,0.00019983,2]
[359775537,1746327040993,-466.66398239,0.00019983,2]
[359775538,1746327041003,-450.0,0.00019983,2]
[359775539,1746327041012,-450.0,0.00019983,2]
[359775540,1746327041022,-500.0,0.00019983,2]
[359775541,1746327041031,-450.0,0.00019983,2]
[359775542,1746327041041,-150.0,0.00019983,2]
[359775543,1746327041050,-884.81,0.00019983,2]
[359775544,1746327041059,-450.0,0.00019983,2]
[359775545,1746327041069,-450.0,0.00019983,2]
[359775546,1746327041079,-450.0,0.00019983,2]
[359775547,1746327041089,-561.92,0.00019983,2]
[359775548,1746327041099,-450.0,0.00019983,2]
[359775549,1746327041110,-718.2,0.00019983,2]
[359775550,1746327041120,-450.0,0.00019983,2]
[359775551,1746327041130,-450.0,0.00019983,2]
[359775552,1746327041139,-450.0,0.00019983,2]
[359775553,1746327041149,-450.0,0.00019983,2]
[359775554,1746327041159,-1769.35,0.00019983,2]
[359775555,1746327041169,-450.0,0.00019983,2]
[359775556,1746327041179,-450.0,0.00019983,2]
[359775557,1746327041188,-450.0,0.00019983,2]
[359775558,1746327041198,-450.0,0.00019983,2]
[359775559,1746327041207,-321.28692681,0.00019983,2]
[359775560,1746327041216,-452.74,0.00019983,2]
[359775561,1746327041225,-500.0,0.00019983,2]
[359775562,1746327041234,-450.0,0.00019983,2]
[359775563,1746327041243,-150.0,0.00019983,2]
[359775564,1746327041252,-450.0,0.00019983,2]
[359775565,1746327041261,-450.0,0.00019983,2]
[359775566,1746327041270,-2657.05,0.00019983,2]
[359775567,1746327041279,-450.0,0.00019983,2]
[359775568,1746327041290,-450.0,0.00019983,2]
[359775569,1746327041299,-450.0,0.00019983,2]
[359775570,1746327041307,-765.69,0.00019983,2]
[359775571,1746327041315,-58217.68,0.00019983,2]
[359775572,1746327041326,-450.0,0.00019983,2]
[359775573,1746327041335,-450.0,0.00019983,2]
[359775574,1746327041343,-273.53446169,0.00019983,2]
[359775575,1746327041352,-450.0,0.00019983,2]
[359775576,1746327041361,-1077.89,0.00019983,2]
[359775577,1746327041371,-191.54577214,0.00019983,2]
[359775578,1746327041379,-483.68,0.00019983,2]
[359775579,1746327041388,-450.0,0.00019983,2]
[359775580,1746327041397,-450.0,0.00019983,2]
[359775581,1746327041406,-450.0,0.00019983,2]
[359775582,1746327041415,-450.0,0.00019983,2]
[359775583,1746327041424,-3000.49,0.00019983,2]
[359775584,1746327041434,-779.8,0.00019983,2]
[359775585,1746327041443,-1272.56,0.00019983,2]
[359775586,1746327041451,-450.0,0.00019983,2]
[359775587,1746327041461,-13692.41,0.00019983,2]
[359775588,1746327041470,-450.0,0.00019983,2]
[359775589,1746327041479,-450.0,0.00019983,2]
[359775590,1746327041488,-450.0,0.00019983,2]
[359775591,1746327041496,-1014.74,0.00019983,2]
[359775592,1746327041506,-909.38,0.00019983,2]
[359775593,1746327041515,-450.0,0.00019983,2]
[359775594,1746327041524,-450.0,0.00019983,2]
[359775595,1746327041533,-450.0,0.00019983,2]
[359775596,1746327041543,-8317.91,0.00019983,2]
[359775597,1746327041552,-450.0,0.00019983,2]
[359775598,1746327041563,-450.0,0.00019983,2]
[359775599,1746327041573,-450.0,0.00019983,2]
[359775600,1746327041582,-621.76,0.00019983,2]
[359775601,1746327041591,-24835.26,0.00019983,2]
[359775602,1746327041600,-450.0,0.00019983,2]
[359775603,1746327041610,-390.05651311,0.00019983,2]
[359775604,1746327041619,-450.0,0.00019983,2]
[359775605,1746327041628,-450.0,0.00019983,2]
[359775606,1746327041639,-615.85,0.00019983,2]
[359775607,1746327041648,-450.0,0.00019983,2]
[359775608,1746327041658,-450.0,0.00019983,2]
[359775609,1746327041667,-450.0,0.00019983,2]
[359775610,1746327041676,-550.10842125,0.00019983,2]
[359775611,1746327041686,-450.0,0.00019983,2]
[359775612,1746327041695,-450.0,0.00019983,2]
[359775613,1746327041704,-450.0,0.00019983,2]
[359775614,1746327041713,-590.34,0.00019983,2]
[359775615,1746327041723,-450.0,0.00019983,2]
[359775616,1746327041733,-450.0,0.00019983,2]
[359775617,1746327041742,-961.44,0.00019983,2]
[359775618,1746327041752,-450.0,0.00019983,2]
[359775619,1746327041761,-450.0,0.00019983,2]
[359775620,1746327041771,-450.0,0.00019983,2]
[359775621,1746327041781,-450.0,0.00019983,2]
[359775622,1746327041791,-500.0,0.00019983,2]
[359775623,1746327041801,-3197.13,0.00019983,2]
[359775624,1746327041810,-2619.87,0.00019983,2]
[359775625,1746327041820,-450.0,0.00019983,2]
[359775626,1746327041829,-472.82,0.00019983,2]
[359775627,1746327041838,-450.0,0.00019983,2]
[359775628,1746327041847,-450.0,0.00019983,2]
[359775629,1746327041856,-450.0,0.00019983,2]
[359775630,1746327041865,-1267.37,0.00019983,2]
[359775631,1746327041874,-450.0,0.00019983,2]
[359775632,1746327041883,-672.43,0.00019983,2]
[359775633,1746327041895,-636.76,0.00019983,2]
[359775634,1746327041906,-450.0,0.00019983,2]
[359775635,1746327041915,-450.0,0.00019983,2]
[359775636,1746327041925,-465.56634054,0.00019983,2]
[359775637,1746327041935,-535.98,0.00019983,2]
[359775638,1746327041946,-1465.18,0.00019983,2]
[359775639,1746327041956,-450.0,0.00019983,2]
[359775640,1746327041965,-615.75,0.00019983,2]
[359775641,1746327041974,-551.24,0.00019983,2]
[359775642,1746327041984,-450.0,0.00019983,2]
[359775643,1746327042206,-705.31,0.00019983,2]
[359775644,1746327042216,-450.0,0.00019983,2]
[359775645,1746327042225,-450.0,0.00019983,2]
[359775646,1746327042234,-591.49,0.00019983,2]
[359775647,1746327042243,-470.39,0.00019983,2]
[359775648,1746327042252,-3460.03,0.00019983,2]
[359775649,1746327042262,-494.87,0.00019983,2]
[359775650,1746327042271,-1226.3,0.00019983,2]
[359775651,1746327042280,-450.0,0.00019983,2]
[359775652,1746327042289,-969.59,0.00019983,2]
[359775653,1746327042299,-450.0,0.00019983,2]
[359775654,1746327042310,-455.46,0.00019983,2]
[359775655,1746327042319,-2752.0,0.00019983,2]
[359775656,1746327042331,-663.53,0.00019983,2]
[359775657,1746327042342,-450.0,0.00019984,2]
[359775658,1746327042353,-476.95291963,0.00019984,2]
[359775659,1746327042363,-450.0,0.00019984,2]
[359775660,1746327042372,-450.0,0.00019984,2]
[359775661,1746327042381,-475.71,0.00019984,2]
[359775662,1746327042390,-475.48632499,0.00019984,2]
[359775663,1746327042399,-480.0833098,0.00019984,2]
[359775664,1746327042408,-450.0,0.00019984,2]
[359775665,1746327042417,-480.07862017,0.00019984,2]
[359775666,1746327042426,-450.0,0.00019984,2]
[359775667,1746327042435,-450.0,0.00019984,2]
[359775668,1746327042444,-537.49266867,0.00019984,2]
[359775669,1746327042455,-450.0,0.00019984,2]
[359775670,1746327042465,-472.35012035,0.00019984,2]
[359775671,1746327042475,-450.0,0.00019984,2]
[359775672,1746327042483,-459.30873225,0.00019984,2]
[359775673,1746327042493,-487.00270582,0.00019984,2]
[359775674,1746327042502,-474.21236692,0.00019984,2]
[359775675,1746327042512,-450.0,0.00019984,2]
[359775676,1746327042521,-450.0,0.00019984,2]
[359775677,1746327042530,-450.0,0.00019984,2]
[359775678,1746327042539,-450.0,0.00019984,2]
[359775679,1746327042548,-450.0,0.00019984,2]
[359775680,1746327042558,-450.0,0.00019984,2]
[359775681,1746327042569,-450.0,0.00019984,2]
[359775682,1746327042578,-462.55783858,0.00019984,2]
[359775683,1746327042588,-472.19919412,0.00019984,2]
[359775684,1746327042597,-666.17,0.00019984,2]
[359775685,1746327042608,-459.46449075,0.00019984,2]
[359775686,1746327042617,-481.59,0.00019984,2]
[359775687,1746327042626,-597.93,0.00019984,2]
[359775688,1746327042636,-469.68426347,0.00019984,2]
[359775689,1746327042646,-179.5271861,0.00019984,2]
[359775690,1746327042655,-376.23674134,0.00019984,2]
[359775691,1746327042664,-450.0,0.00019984,2]
[359775692,1746327042673,-450.0,0.00019984,2]
[359775693,1746327042682,-450.0,0.00019984,2]
[359775694,1746327042691,-450.0,0.00019984,2]
[359775695,1746327042700,-450.0,0.00019984,2]
[359775696,1746327042710,-479.1396632,0.00019984,2]
[359775697,1746327042719,-478.75,0.00019984,2]
[359775698,1746327042728,-450.0,0.00019984,2]
[359775699,1746327042737,-908.52,0.00019984,2]
[359775700,1746327042746,-450.0,0.00019984,2]
[359775701,1746327042755,-577.0,0.00019984,2]
[359775702,1746327042765,-450.0,0.00019984,2]
[359775703,1746327042774,-450.0,0.00019984,2]
[359775704,1746327042783,-450.0,0.00019984,2]
[359775705,1746327042792,-782.73,0.00019984,2]
[359775706,1746327042801,-450.0,0.00019984,2]
[359775707,1746327042810,-450.0,0.00019984,2]
[359775708,1746327042819,-450.0,0.00019984,2]
[359775709,1746327042828,-450.0,0.00019984,2]
[359775710,1746327042837,-478.3,0.00019984,2]
[359775711,1746327042846,-450.0,0.00019984,2]
[359775712,1746327042855,-450.0,0.00019984,2]
[359775713,1746327042865,-931.68,0.00019984,2]
[359775714,1746327042874,-450.0,0.00019984,2]
[359775716,1746327042883,-450.0,0.00019984,2]
[359775718,1746327042892,-450.0,0.00019984,2]
[359775720,1746327042902,-450.0,0.00019984,2]
[359775722,1746327042911,-450.0,0.00019984,2]
[359775724,1746327042920,-671.65,0.00019984,2]
[359775725,1746327042929,-450.0,0.00019984,2]
[359775727,1746327042938,-450.0,0.00019984,2]
[359775728,1746327042947,-450.0,0.00019984,2]
[359775729,1746327042956,-450.0,0.00019984,2]
[359775730,1746327042965,-450.0,0.00019984,2]
[359775731,1746327042974,-450.0,0.00019984,2]
[359775733,1746327042984,-535.99,0.00019984,2]
[359775734,1746327042993,-469.9218943,0.00019984,2]
[359775735,1746327043002,-450.0,0.00019984,2]
[359775736,1746327043011,-450.0,0.00019984,2]
[359775737,1746327043020,-450.0,0.00019984,2]
[359775738,1746327043030,-1672.21,0.00019984,2]
[359775739,1746327043039,-550.88,0.00019984,2]
[359775740,1746327043049,-450.0,0.00019984,2]
[359775741,1746327043058,-734.86,0.00019984,2]
[359775743,1746327043067,-450.0,0.00019984,2]
[359775744,1746327043076,-450.0,0.00019984,2]
[359775746,1746327043085,-1510.1,0.00019984,2]
[359775749,1746327043095,-450.0,0.00019984,2]
[359775751,1746327043104,-450.0,0.00019984,2]
[359775753,1746327043113,-450.0,0.00019984,2]
[359775755,1746327043123,-450.0,0.00019984,2]
[359775757,1746327043133,-450.0,0.00019984,2]
[359775758,1746327043143,-1589.7,0.00019984,2]
[359775759,1746327043152,-450.0,0.00019984,2]
[359775760,1746327043162,-450.0,0.00019984,2]
[359775761,1746327043170,-450.0,0.00019984,2]
[359775762,1746327043179,-450.0,0.00019984,2]
[359775763,1746327043188,-975.53,0.00019984,2]
[359775764,1746327043197,-450.0,0.00019984,2]
[359775765,1746327043206,-832.08,0.00019984,2]
[359775766,1746327043215,-450.0,0.00019984,2]